Cogmind - Beta 12 @@@ ROGUE MODE // 2023.03.19 @ 21:40:35 Player: Mr. Q Result: Destroyed by Y-45 Defender with Beam Rifle Performance ------------- Evolutions (2) 1000 Regions Visited (4) 800 Robots Destroyed (27) 135 Value Destroyed (509) 509 Prototype IDs (4) 80 Alien Tech Used (0) 0 Bonus (-97) -97 TOTAL SCORE: 2427 Bonus ------- Friendly Fire -97 Cogmind --------- Core Integrity 0/550 Matter 37/300 Energy 100/100 System Corruption 0% Temperature Cool (9) Movement Core (200) Ox3 Location -8/Materials Parts ------- > --- POWER (1) -------- (None) > --- PROPULSION (2) --- (None) > --- UTILITY (6) ------ Medium Storage Unit Structural Scanner System Shield > --- WEAPON (2) ------- (None) > --- INVENTORY (10) --- Titanium Leg Cooled Airjet Disposable Heat Sink Medium Storage Unit Trap Scanner Terrain Scan Processor Matter Filter Peak State ------------ > --- POWER ------------ Light Angular Momentum Engine > --- PROPULSION ------- Cooled Airjet Cooled Airjet > --- UTILITY ---------- Disposable Heat Sink Medium Storage Unit Experimental Sensor Array Signal Interpreter Matter Filter System Shield > --- WEAPON ----------- Small Laser Mini Grenade Launcher > --- INVENTORY -------- Cooled Airjet Cooled Airjet Medium Storage Unit Structural Scanner Terrain Scan Processor Matter Filter Mini Grenade Launcher [Rating: 40] Favorites ----------- Power Ion Engine Engine Ion Engine Power Core Nuclear Core Propulsion Compact Wheel Wheel Compact Wheel Hover Unit Cooled Airjet Utility Small Storage Unit Device Experimental Sensor Array Storage Small Storage Unit Processor Signal Interpreter Hackware System Shield Protection Light Armor Plating Weapon Mini Grenade Launcher Energy Gun Small Laser Energy Cannon Advanced Beam Cannon Ballistic Gun Light Assault Rifle Launcher Mini Grenade Launcher Special Weapon Mining Laser Build | -11 -10 -10 -9 -8 ------- Run | Jun Mat Min Mat Mat Slots Evolved 4 | . . . 2 2 Power . | . . . . . Propulsion . | . . . . . Utility 4 | . . . 2 2 Weapon . | . . . . . Parts Attached 40 | 6 2 11 5 16 Power 3 | 1 . . . 2 Engine 2 | 1 . . . 1 Core 1 | . . . . 1 Reactor . | . . . . . Propulsion 9 | 2 . 2 1 4 Treads . | . . . . . Leg . | . . . . . Wheel 6 | 2 . 2 1 1 Hover 3 | . . . . 3 Flight . | . . . . . Utility 15 | 1 1 6 2 5 Device 7 | . 1 2 . 4 Storage 5 | 1 . 2 2 . Processor 1 | . . 1 . . Hackware 1 | . . . . 1 Protection 1 | . . 1 . . Artifact . | . . . . . Weapon 13 | 2 1 3 2 5 Energy Gun 4 | . . 1 . 3 Energy Cannon 1 | . . . 1 . Ballistic Gun 2 | 2 . . . . Ballistic Cannon . | . . . . . Launcher 3 | . 1 . . 2 Special Weapon 3 | . . 2 1 . Impact Weapon . | . . . . . Slashing Weapon . | . . . . . Piercing Weapon . | . . . . . Special Melee Weapon . | . . . . . Unidentified Prototypes 4 | . . 2 1 1 Parts Lost 16 | . . . . 16 Power 3 | . . . . 3 Propulsion 5 | . . . . 5 Utility 4 | . . . . 4 Weapon 4 | . . . . 4 Highest Loss Streak 8 | . . . . 8 To Critical Strikes . | . . . . . Average Slot Usage (%) 90 | . 98 92 89 87 Engine 10 | . 14 14 11 6 Wheel 18 | . 28 28 22 8 Hover 2 | . . . . 5 Device 14 | . 12 6 11 22 Storage 12 | . 14 10 12 14 Processor 6 | . . 1 11 8 Hackware 2 | . . . . 5 Energy Gun 1 | . . . . 2 Ballistic Gun 1 | . 15 . . . Launcher 11 | . 12 14 11 9 Special Weapon 7 | . . 12 11 3 Naked Turns . | . . . . . Heaviest Build 28 | 13 13 21 23 28 Greatest Support 32 | 32 32 32 32 32 Greatest Overweight (x) 3 | . . . . 3 Average Overweight (x) . | . . . . . Largest Inventory Capacity 10 | 8 8 8 10 10 Average Capacity 8 | 7 8 7 8 10 Most Carried 9 | 4 8 8 6 9 Average Carried 5 | 2 7 6 4 5 Final Capacity 10 | 8 8 5 10 10 Final Carried 8 | 4 8 5 6 7 Class Distribution -------------------- 86% | Mutant 13% | Scavenger-Mutant Dominant Class ---------------- Mutant | -10/Materials Mutant | -10/Mines Mutant | -9/Materials Mutant | -8/Materials Resources | -11 -10 -10 -9 -8 ----------- Run | Jun Mat Min Mat Mat Matter Collected 553 | 198 65 189 52 49 Remotely . | . . . . . Salvage Created 355 | . 176 33 63 83 Parts 42 | . 13 1 9 19 Haulers Intercepted 1 | . . . 1 . Recyclers Shooed 2 | . . 2 . . Parts Field Recycled . | . . . . . Retrieved Matter . | . . . . . Parts Self-Destructed . | . . . . . Prevented . | . . . . . Kills | -11 -10 -10 -9 -8 ------- Run | Jun Mat Min Mat Mat Combat Hostiles Destroyed 16 | . 6 . . 10 AOE 16 | . 6 . . 10 Classes Destroyed 10 | . 5 . 3 2 Worker 2 | . . . 1 1 Builder 3 | . 1 . . 2 Tunneler 1 | . . . . 1 Hauler 1 | . . . 1 . Recycler 2 | . 1 1 . . Operator 1 | . . . 1 . Watcher 1 | . 1 . . . Swarmer 8 | . 3 . . 5 Grunt 6 | . 3 . . 3 Sentry 2 | . . . . 2 Best Kill Streak 6 | . 6 1 2 6 Combat Bots Only 5 | . 3 . . 5 Max Kills in Single Turn 4 | . 3 1 1 4 Gunslinging . | . . . . . Exploded 4 | . 2 . . 4 Melee . | . . . . . Uniques/NPCs Destroyed . | . . . . . Combat | -11 -10 -10 -9 -8 -------- Run | Jun Mat Min Mat Mat Damage Taken 1848 | . 172 62 . 1614 Core 618 | . 68 . . 550 Absorbed by Shields . | . . . . . Core Remaining (%) 90 | 100 . 72 100 . Volleys Fired 44 | . 8 12 3 21 Largest 2 | . 2 2 1 2 Hottest 130 | . 50 130 30 100 Shots Fired 63 | . 14 13 3 33 Gun 15 | . 8 . . 7 Cannon . | . . . . . Launcher 30 | . 6 2 3 19 Special 18 | . . 11 . 7 Kinetic 8 | . 8 . . . Thermal 25 | . . 11 . 14 Explosive 30 | . 6 2 3 19 Electromagnetic . | . . . . . Robot Hit Streak 11 | . 3 1 2 11 Robot Miss Streak 2 | . 2 2 1 1 Penetration Max . | . . . . . Secondary Targets . | . . . . . Shots Hit Robots 34 | . 9 2 2 21 Core Hits 47 | . 10 2 5 30 Critical Kills . | . . . . . Critical Parts Destroyed . | . . . . . Critical Strikes . | . . . . . Melee Attacks . | . . . . . Impact . | . . . . . Slashing . | . . . . . Piercing . | . . . . . Sneak Attacks . | . . . . . Combat Hostiles . | . . . . . Follow-up Attacks . | . . . . . Damage Inflicted 2393 | . 692 174 160 1367 Guns 98 | . 43 . . 55 Cannons . | . . . . . Explosions 2165 | . 649 73 160 1283 Melee . | . . . . . Ramming 34 | . . 5 . 29 Kinetic 43 | . 43 . . . Thermal 151 | . . 96 . 55 Explosive 2165 | . 649 73 160 1283 Electromagnetic . | . . . . . Impact . | . . . . . Slashing . | . . . . . Piercing . | . . . . . Highest Corruption . | . . . . . Average Corruption . | . . . . . Corruption Purged . | . . . . . Corruption Blocked . | . . . . . Overload Shots . | . . . . . Overflow Damage 88 | . 50 . . 38 Projectiles . | . . . . . Explosions 88 | . 50 . . 38 Melee . | . . . . . Knockbacks 1 | . . . . 1 Impact 1 | . . . . 1 Kinetic . | . . . . . Secondary . | . . . . . Self-Inflicted Damage 444 | . 37 64 . 343 Shots 12 | . 1 2 . 9 Rammed 5 | . . 1 . 4 Targets Rammed 5 | . . 1 . 4 Kicked . | . . . . . Crushed . | . . . . . Highest Temperature 29 | . 15 12 . 29 Average Temperature 6 | . 8 5 . 6 Received Heat Transfer 498 | . 75 . . 423 Siege Activations . | . . . . . Robots Corrupted . | . . . . . Combat Hostiles . | . . . . . Parts Fried . | . . . . . Impact Corruptions . | . . . . . Robots Melted . | . . . . . Combat Hostiles . | . . . . . Parts Melted . | . . . . . Heat Transferred 325 | . . 200 . 125 Parts Sabotaged . | . . . . . Parts Stolen . | . . . . . Parts Stripped . | . . . . . Power Chain Reactions . | . . . . . Missiles Intercepted . | . . . . . Alert | -11 -10 -10 -9 -8 ------- Run | Jun Mat Min Mat Mat Peak Influence 313 | . 235 120 124 313 Initial 91 | . . 91 46 52 Average 119 | . 91 114 71 167 Maximum Alert Level 1 | . 1 . . 1 Low Security (%) 85 | 100 79 100 100 67 Level 1 14 | . 20 . . 32 Level 2 . | . . . . . Level 3 . | . . . . . Level 4 . | . . . . . Level 5 . | . . . . . High Security . | . . . . . Max Security . | . . . . . Squads Dispatched 3 | . 1 . 1 1 Investigation 3 | . 1 . 1 1 Extermination . | . . . . . Reinforcement . | . . . . . Assault . | . . . . . Garrison . | . . . . . Intercept . | . . . . . Searches Triggered . | . . . . . Construction Impeded . | . . . . . Haulers Reinforced . | . . . . . Active Scanning Responses . | . . . . . Cargo Convoy Interrupts . | . . . . . Stealth | -11 -10 -10 -9 -8 --------- Run | Jun Mat Min Mat Mat Distress Signals 3 | . 1 . . 2 Communications Jammed . | . . . . . Distress Signals . | . . . . . Times Spotted 34 | . 11 . 3 20 Peak Tracking Total 12 | . 4 . 2 12 Tactical Retreats . | . . . . . Traps | -11 -10 -10 -9 -8 ------- Run | Jun Mat Min Mat Mat Traps Triggered 2 | . 1 . 1 . Indirectly . | . . . . . Trap Hack Attempts . | . . . . . Triggered . | . . . . . Disarmed . | . . . . . Reprogrammed . | . . . . . Reused . | . . . . . Traps Extracted . | . . . . . Installed . | . . . . . Triggered . | . . . . . Machines | -11 -10 -10 -9 -8 ---------- Run | Jun Mat Min Mat Mat Machines Disabled 1 | . . . . 1 Max in Single Turn 1 | . . . . 1 Machines Repaired . | . . . . . Machines Sabotaged . | . . . . . Overloaded Fab Kills . | . . . . . Hacking | -11 -10 -10 -9 -8 --------- Run | Jun Mat Min Mat Mat Machines Accessed 13 | . . 1 4 8 Terminals 9 | . . . 4 5 Fabricators . | . . . . . Repair Stations 1 | . . . . 1 Recycling Units 1 | . . . . 1 Scanalyzers . | . . . . . Garrison Access 1 | . . . . 1 Total Hacks 35 | . . 1 8 26 Successful 11 | . . 1 2 8 Failed 24 | . . . 6 18 Catastrophic 5 | . . . 2 3 Database Lockouts . | . . . . . Manual . | . . . . . Terminals 27 | . . . 8 19 Fabricators . | . . . . . Repair Stations 1 | . . . . 1 Recycling Units 4 | . . . . 4 Scanalyzers . | . . . . . Garrison Access 2 | . . . . 2 Terminal Hacks 9 | . . 1 2 6 Record 1 | . . . . 1 Open Door 1 | . . 1 . . Branch Access Points 1 | . . . . 1 Emergency Access Points 1 | . . . . 1 Alert Level 1 | . . . . 1 Locate Traps 1 | . . . . 1 Zone Layout 3 | . . . 2 1 Fabricator Hacks . | . . . . . Repair Station Hacks . | . . . . . Recycling Unit Hacks 2 | . . . . 2 Retrieve Matter 2 | . . . . 2 Scanalyzer . | . . . . . Garrison Access Hacks . | . . . . . Unauthorized Hacks . | . . . . . Terminals . | . . . . . Fabricators . | . . . . . Repair Stations . | . . . . . Recycling Units . | . . . . . Scanalyzers . | . . . . . Garrison Access . | . . . . . Data Cores Recovered 1 | . . . 1 . Used 1 | . . . 1 . Hacking Detections 11 | . . . 4 7 Full Trace Events 1 | . . . . 1 Feedback Events . | . . . . . Feedback Blocked . | . . . . . Robot Schematics Acquired . | . . . . . Robots Built . | . . . . . Authchips . | . . . . . Time . | . . . . . Total Robot Build Rating . | . . . . . Part Schematics Acquired . | . . . . . Parts Built . | . . . . . Authchips . | . . . . . Time . | . . . . . Total Part Build Rating . | . . . . . Parts Repaired . | . . . . . Time . | . . . . . Parts Recycled . | . . . . . Recycled Matter . | . . . . . Retrieved Matter . | . . . . . Retrieved Components . | . . . . . Parts Scanalyzed . | . . . . . Part Schematics Acquired . | . . . . . Parts Damaged . | . . . . . Bothacking | -11 -10 -10 -9 -8 ------------ Run | Jun Mat Min Mat Mat Used RIF Installer . | . . . . . Robots Hacked . | . . . . . Non-combat . | . . . . . Combat . | . . . . . Robot Hacks Applied . | . . . . . Relay Couplers Released . | . . . . . Fabnet Peak Effective % . | . . . . . Robots Rewired . | . . . . . Allies Hacked . | . . . . . Hacks Repelled . | . . . . . Allies | -11 -10 -10 -9 -8 -------- Run | Jun Mat Min Mat Mat Total Allies 1 | . . 1 . . Largest Group 1 | . . 1 . . Highest-Rated Group 31 | . . 31 . . Highest-Rated Ally 31 | . . 31 . . Total Orders . | . . . . . Ally Attacks . | . . . . . Total Damage . | . . . . . Kills . | . . . . . Allies Corrupted . | . . . . . Allies Melted . | . . . . . Intel | -11 -10 -10 -9 -8 ------- Run | Jun Mat Min Mat Mat Robot Analysis Total . | . . . . . Derelict Logs Recovered 1 | . . 1 . . Drone Launches 16 | . . 16 . . Drone Recoveries . | . . . . . Exploration | -11 -10 -10 -9 -8 ------------- Run | Jun Mat Min Mat Mat Turns Passed 1346 | 69 117 355 265 540 Spaces Moved 1074 | 58 87 284 251 394 Core 4 | 3 . . . 1 Treads . | . . . . . Legs . | . . . . . Wheels 904 | 55 87 284 251 227 Hover 166 | . . . . 166 Flight . | . . . . . Fastest Speed 46 | 50 100 100 90 46 Average Speed 100 | 97 100 100 98 103 Slowest Speed 230 | 100 100 100 100 230 Overloaded Moves . | . . . . . Propulsion Burnouts . | . . . . . Robots Hopped . | . . . . . Cave-ins Triggered . | . . . . . Exploration Rate (%) 33 | 4 30 72 20 39 Regions Visited 4 Branch Regions 1 Pre-discovered Areas . | . . . . . Known Exits Taken 2 | . . 1 1 . Unknown Exits Taken 2 | 1 1 . . . Scrap Searched 2 | . . 2 . . Spaces Dug 33 | . . 27 . 6 Terrain Destroyed 181 | . 49 28 21 83 Melee . | . . . . . Projectile 12 | . . 6 . 6 AOE 169 | . 49 22 21 77 Terrain Rammed . | . . . . . Walls Destroyed . | . . . . . Machines Disabled . | . . . . . Actions | -11 -10 -10 -9 -8 --------- Run | Jun Mat Min Mat Mat Total 1232 | 67 105 320 264 476 Wait 34 | . 1 . 3 30 Move 1070 | 57 86 283 250 394 Hop . | . . . . . Pick Up 21 | 4 5 3 1 8 Fast Attach 23 | 6 2 7 3 5 Attach 10 | . . 2 1 7 Detach 3 | . 1 1 . 1 Swap 7 | . . 2 1 4 Drop 15 | . 2 9 2 2 Fire 44 | . 8 12 3 21 Melee . | . . . . . Ram 5 | . . 1 . 4 Kick . | . . . . . Crush . | . . . . . Escape Stasis . | . . . . . Rewire . | . . . . . Trap . | . . . . . Miscellaneous . | . . . . . Route ------- -11/Junkyard -10/Materials -10/Mines -9/Materials -8/Materials History --------- Turn | Location | Event 30 | -11/Junkyard | Discovered new exit (range 16) 70 | -11/Junkyard | Entered Materials 151 | -10/Materials | Discovered new exit (range 8) 187 | -10/Materials | Entered Mines 190 | -10/Mines | Met a Derelict bent on vengeance 190 | -10/Mines | Received a Mining Laser from a helpful Derelict 260 | -10/Mines | Found the Drone Emporium 271 | -10/Mines | Found Prototype Device 271 | -10/Mines | Identified Decoy Drone Bay 311 | -10/Mines | Build established: Mutant 415 | -10/Mines | Learned Materials stockpile data 486 | -10/Mines | Found a damaged Exp. Sensor Array with a note attached 493 | -10/Mines | Found Prototype Device 493 | -10/Mines | Identified Exp. Sensor Array 530 | -10/Mines | Discovered new exit (range 10) 540 | -10/Mines | Identified exit to Materials 542 | -10/Mines | Entered Materials 542 | -9/Materials | Evolved 2 slots: Utility x2 694 | -9/Materials | Discovered new exit (range 15) 728 | -9/Materials | Identified exit to Materials 807 | -9/Materials | Entered another Materials area 807 | -8/Materials | Evolved 2 slots: Utility x2 1038 | -8/Materials | Lost 5 parts (1p2n1u1w) 1294 | -8/Materials | Core integrity fell below 50% 1330 | -8/Materials | Lost 8 parts (1p2n2u3w) 1334 | -8/Materials | Core integrity fell below 20% 1347 | -8/Materials | Destroyed by Y-45 Defender with Beam Rifle Last Messages --------------- 01285_ Acquired 8 matter. 01286_ Acquired 2 matter. 01286_ K-01 Serf collects debris. 01287_ S-10 Pest destroyed. 01287_ Mni. Grenade Launcher destroyed. 01287_ Cld. Airjet destroyed. 01287_ Critical hit (Burn: +37). 01289_ Mni. Grenade Launcher destroyed. 01291_ Sml. Laser destroyed. 01293_ R-06 Scavenger collects Lgt. Assault Rifle. 01298_ R-06 Scavenger collects Flight Unit. 01299_ Slammed into G-47 Trooper. 01299_ G-47 Trooper knocked back. 01299_ Cld. Airjet destroyed. 01306_ Acquired Titanium Leg. 01323_ Acquired Nuclear Core. 01331_ Slammed into G-47 Trooper. 01336_ Signal Interpreter destroyed. 01341_ Nuclear Core destroyed. 01345_ Cld. Airjet destroyed. Map ----- +----------------------------------------------------+ | ?????????????????????????????????????????????? | | ?????????????????????????????????????????????? | | ?????????????????????????????????????????????? | | ?????????????????????????????????????????????? | | ?????????????????????????????????????????????? | | ?????????????????????????????????????????????? | | ?????????????????????????????????????????????? | | ?????????????????????????????????????????????? | | ?????????????????????????????????????????????? | | ?????????????????????????????????????????????? | | ?????????????????????????????????????????????? | | ?????????????????????????????????????????????? | | ?????????????????????????????????????? ????? | | ??????????????????????????????????????#+#????? | | ????????????????????????????????????? ???? | | ?????????????????????????????????????## ##???? | | ?????????????????????????????????????## # ???? | | ???????????#############?????? ### # ???? | | ???????????#############??????######### # ???? | | ???????????## """ ##??????## # # | | ???????????## "T" ##??????## """ # #####+ | | ???????????## ########## "Y" # | | ????????##### [ ########## | | ????????############;## ### = [ """ | | ????????## # # ### [ R" | | ????????## """ #gs @# """ ##### """ | | ????????## """ g ! + """ / | | ????????## """ # # """ #### | | ????????## [# # ###### =/ | | ????????## ###Y############### # / | | ????????########### ########## ?? + | | ????????########### ##?????????! # | | ?????????????????## ##??????##* ## #### | | ?????????????????## ##??????########### #### | | ?????????????????## ##??????########### #### | | ?????????????????## ##???????????????## #### | | ?????????????????## ##???????????????## ###### | | ?????????????????## ##???????????????##/### | | ?????????????????## ##???????????????# T ???? | | ??????????????????? ???????????????????? ????? | | ??????????????????? ???????????????????? ????? | | ??????????????????? ???????????????????? ????? | | ??????????????????? ???????????????????? ????? | | ??????????????????? ?????????????????????????? | | ??????????????????? ?????????????????????????? | | ?????????????????????????????????????????????? | | ?????????????????????????????????????????????? | | ?????????????????????????????????????????????? | | ?????????????????????????????????????????????? | | ?????????????????????????????????????????????? | +----------------------------------------------------+ Best States ------------- Heat Dissipation 31 Coolant Potential 50 Energy Generation 18 Energy Capacity 250 Matter Stores 300 Matter Capacity 300 Sight Range 16 Robot Scan Range 20 Terrain Scan Density 10 Additional Mass Support 6 Armor Coverage 150 Evasion (%) 42 Matter Filtering 30 Defensive Hacking 10 Item Schematics ----------------- None Robot Schematics ------------------ None Fabricated ------------ Nothing Alien Tech Used ----------------- None Achievements -------------- None Challenges ------------ None Game ------ Seed ModifiedLegDevice Manual? 0 Play Time 00:22:48 Cumulative 35.0 hours Start 2023.03.19 @ 21:16:38 End 2023.03.19 @ 21:40:35 Sessions 1 Manual Loads 0 Difficulty Rogue Special Mode None Game No. 34 Rogue 14 Adventurer 2 Explorer 18 Win Type - Total 2 Types 2/0/0/0/0/0/0/0/0 Lore% 29 Gallery% 43 Achievement% 32 Wizard Run 0 Options --------- ASCII 0 Keyboard 0 Movement Numpad Keybinds 0 Fullscreen 1 Font 24/Smallcaps Map View 76x50 Tactical HUD 1 Map Filters NONE Filters NONE Steam 1 RUN: e3b791e8-fa95-42ab-afef-7b47ea956140